bitfinex-derivatives/quotes_ETHF0:USTF0_20240830
["timestamp","ask_amount","ask_price","bid_price","bid_amount"]
[1724986325472,3.43,2513.7,2513.6,0.00596386]
[1724986328676,3.8278,2513.7,2513.6,0.00596386]
[1724986328973,3.43,2513.7,2513.6,0.00596386]
[1724986330366,3.8278,2513.7,2513.6,0.00596386]
[1724986337377,0.39784,2513.4,2513.3,0.4604]
[1724986337581,3.60564,2513.4,2513.3,0.4604]
[1724986341283,0.39787,2513.2,2513.1,0.45476386]
[1724986341882,0.39787,2513.2,2513.1,0.00596386]
[1724986342278,3.82787,2513.2,2513.1,0.00596386]
[1724986343991,7.03567,2513.2,2513.1,0.00596386]
[1724986344391,11.01487,2513.2,2513.1,0.00596386]
[1724986344591,16.46517059,2513.2,2513.1,0.00596386]
[1724986344786,0.99479,2513.0,2512.5,0.4607]
[1724986344990,0.39797,2512.7,2512.5,0.4607]
[1724986345394,6.6378,2512.8,2512.5,0.4607]
[1724986345395,0.39797,2512.6,2512.5,0.4607]
[1724986345595,0.39799,2512.5,2512.3,0.4749]
[1724986345792,7.03579,2512.5,2512.3,0.4749]
[1724986346493,6.6378,2512.5,2512.3,0.4749]
[1724986346795,7.03579,2512.5,2512.3,0.4749]
[1724986347190,0.398,2512.4,2512.3,0.4749]
[1724986348994,7.03579,2512.5,2512.3,0.4749]
[1724986349700,6.6378,2512.5,2512.3,0.87292]
[1724986349897,6.6378,2512.5,2512.3,0.4749]
[1724986350411,6.6378,2512.5,2512.3,0.87291]
[1724986350701,6.6378,2512.5,2512.4,4.378]
[1724986350702,3.2078,2512.5,2512.4,4.378]
[1724986351702,0.00596386,2512.7,2512.6,0.39797]
[1724986352005,0.00596386,2512.7,2512.6,41.19797]
[1724986352191,0.00596386,2512.7,2512.6,51.17797]
[1724986352701,0.00596386,2512.7,2512.6,45.17797]
[1724986354402,0.00596386,2512.7,2512.6,51.17797]
[1724986354790,0.00596386,2512.7,2512.6,52.1729]
[1724986355695,170.6778,2513.4,2513.3,0.39786]
[1724986355997,167.47,2513.4,2513.3,0.39786]
[1724986356187,167.47,2513.4,2513.3,4.37626]
[1724986357588,167.47,2513.4,2513.0,0.9068]
[1724986357793,0.39787,2513.3,2513.0,0.836]
[1724986358097,3.6057,2513.1,2512.7,0.4495]
[1724986358299,3.6057,2513.1,2512.7,0.84744]
[1724986358498,0.39791,2513.0,2512.7,0.84744]
[1724986358798,3.6057,2513.1,2512.8,0.39793]
[1724986359197,0.39791,2513.0,2512.7,0.84744]
[1724986359795,3.6057,2513.1,2512.8,0.39793]
[1724986363298,0.39791,2513.0,2512.8,0.39793]
[1724986363694,3.60571,2513.0,2512.8,0.39793]
[1724986364603,3.2078,2513.0,2512.8,0.39793]
[1724986364908,3.2078,2513.0,2512.7,0.4495]
[1724986365112,3.2078,2513.0,2512.8,0.39792]
[1724986366806,0.3979,2513.1,2512.8,0.39792]
[1724986367109,3.2078,2513.0,2512.8,0.39792]
[1724986368703,3.2078,2513.0,2512.9,0.39792]
[1724986368912,0.3979,2513.1,2512.8,0.39793]
[1724986369705,0.39793,2512.9,2512.7,0.4495]
[1724986369912,0.99473,2513.1,2512.7,0.4495]
[1724986370215,3.2078,2513.0,2512.7,0.4495]
[1724986370416,0.39794,2512.8,2512.5,41.67987]
[1724986370607,1.35326,2512.7,2512.5,41.67987]
[1724986371011,0.9553,2512.7,2512.5,41.67987]
[1724986371308,0.9553,2512.7,2512.6,0.39797]
[1724986371720,0.4698,2512.7,2512.6,0.39797]
[1724986372314,3.60571,2513.0,2512.6,3.98]
[1724986372611,3.60571,2513.0,2512.7,0.85134]
[1724986372811,0.39792,2512.9,2512.7,0.85134]
[1724986374714,3.2078,2513.0,2512.7,0.85134]
[1724986374715,3.60572,2513.0,2512.7,0.85134]
[1724986374915,3.60572,2513.0,2512.8,0.39794]
[1724986375415,3.2078,2513.0,2512.9,0.39792]
[1724986375909,3.2078,2513.0,2512.9,4.37712]
[1724986377414,0.951,2513.3,2513.2,0.39787]
[1724986377720,3.83378386,2513.6,2513.5,0.39783]
[1724986377721,0.00596386,2513.6,2513.5,0.39783]
[1724986378217,1.77734,2514.1,2513.9,0.39775]
[1724986378218,1.3796,2514.1,2513.9,0.39775]
[1724986378517,3.2078,2514.0,2513.8,0.39777]
[1724986378819,7.03555,2514.0,2513.8,0.39777]
[1724986379516,7.03555,2514.0,2513.7,0.39778]
[1724986379714,7.03555,2514.0,2513.6,0.93666386]
[1724986379715,6.6378,2514.0,2513.6,0.93666386]
[1724986380019,7.03555,2514.0,2513.7,0.39779]
[1724986381219,0.3978,2513.7,2513.6,0.00596386]
[1724986381411,3.6056,2513.7,2513.6,0.00596386]
[1724986381611,13.38590035,2513.7,2513.6,0.00596386]
[1724986384529,19.38590035,2513.7,2513.6,0.00596386]
[1724986389019,20.38040035,2513.7,2513.6,0.00596386]
[1724986392026,13.38590035,2513.7,2513.6,0.00596386]
[1724986393018,7.54720035,2513.7,2513.6,0.00596386]
[1724986393223,3.2078,2513.7,2513.6,4.38217386]
[1724986393927,3.43596386,2514.2,2514.1,0.39773]
[1724986394123,0.00596386,2514.2,2514.1,0.39773]
[1724986394322,0.00596386,2514.2,2514.1,4.37533]
[1724986394819,0.40368386,2514.2,2513.9,1.35386]
[1724986395229,0.40368386,2514.2,2514.0,0.39775]
[1724986395230,0.00596386,2514.2,2514.0,0.39775]
[1724986395422,0.40368386,2514.2,2513.9,42.15385]
[1724986395823,0.00596386,2514.2,2514.0,0.39775]
[1724986396227,0.00596386,2514.2,2514.1,0.39773]
[1724986396630,0.00596386,2514.2,2514.1,4.37533]
[1724986402433,0.00596386,2514.2,2514.1,0.39773]
[1724986403433,3.2078,2514.5,2514.4,0.39768]
[1724986403932,3.82759,2515.0,2514.8,0.39762]
[1724986404240,3.82759,2515.0,2514.7,0.39763]
[1724986404832,0.39761,2514.9,2514.6,0.39764]
[1724986405136,0.39762,2514.8,2514.6,0.39764]
[1724986405436,7.03543,2514.8,2514.6,0.39765]
[1724986405922,0.39764,2514.7,2514.5,1.78026]
[1724986406132,0.39764,2514.7,2514.5,0.9227]
[1724986406630,0.39764,2514.7,2514.5,1.32037]
[1724986406934,0.39764,2514.7,2514.5,0.9227]
[1724986407132,0.39764,2514.7,2514.5,1.32037]
[1724986408839,0.39765,2514.6,2514.5,0.9227]
[1724986409029,0.39769,2514.4,2514.2,0.4833]
[1724986409231,0.39769,2514.4,2514.2,0.88101]
[1724986409633,0.39769,2514.4,2514.2,0.4833]
[1724986409941,3.60548,2514.5,2514.2,0.881]
[1724986410143,0.39769,2514.4,2514.2,0.4833]
[1724986410441,0.3977,2514.3,2514.1,0.84523]
[1724986410738,0.3977,2514.3,2514.1,0.4475]
[1724986411133,0.39772,2514.2,2514.1,0.4475]
[1724986411734,0.39771,2514.3,2514.1,0.4475]
[1724986412537,0.39772,2514.2,2514.1,0.4475]
[1724986413541,8.326373,2514.4,2514.1,0.4475]
[1724986413542,0.39771,2514.3,2514.1,0.4475]
[1724986417445,3.2078,2514.5,2514.1,0.4475]
[1724986417645,3.60548,2514.5,2514.1,0.4475]
[1724986417846,3.60548,2514.5,2514.2,0.85661]
[1724986418046,3.60548,2514.5,2514.2,41.65661]
[1724986418638,3.2078,2514.5,2514.4,0.39768]
[1724986419152,3.2078,2514.5,2514.2,41.2589]
[1724986419648,3.2078,2514.5,2514.4,0.39768]
[1724986420450,3.2078,2514.5,2514.4,4.37448]
[1724986421163,3.2078,2514.5,2514.4,4.99372581]
[1724986423051,3.2078,2514.5,2514.4,11.88595491]
[1724986423653,4.174,2514.8,2514.6,0.39764]
[1724986423849,4.174,2514.8,2514.5,0.4833]
[1724986424155,4.7817,2515.0,2514.7,0.39762]
[1724986424356,4.7817,2515.0,2514.6,1.06001861]
[1724986424357,4.7817,2515.0,2514.8,0.39762]
[1724986424759,0.9541,2515.0,2514.6,0.4408]
[1724986424950,0.00596386,2515.1,2514.9,0.39761]
[1724986427754,0.00596386,2515.1,2515.0,0.39759]
[1724986430165,14.403,2515.5,2515.0,0.39759]
[1724986430166,7.3818,2515.5,2515.0,10.37359]
[1724986430367,3.2078,2515.5,2515.4,0.39753]
[1724986430662,0.39753,2515.4,2515.1,1.30817]
[1724986430853,1.3347,2515.4,2515.2,0.39756]
[1724986431461,3.2078,2515.5,2515.4,0.39753]
[1724986436258,3.60531,2515.5,2515.1,0.9106]
[1724986436458,0.4597,2515.4,2515.2,0.6191307]
[1724986436659,0.39755,2515.3,2515.0,0.00596386]
[1724986436859,0.39756,2515.2,2515.1,0.61914239]
[1724986437063,0.39757,2515.1,2515.0,0.00596386]
[1724986437571,0.39757,2515.2,2515.0,0.62513699]
[1724986437764,0.39757,2515.2,2515.0,0.00596386]
[1724986438466,0.39757,2515.1,2515.0,0.00596386]
[1724986438664,0.39757,2515.1,2515.0,0.62514435]
[1724986438865,4.37357,2515.1,2515.0,0.00596386]
[1724986440060,0.39757,2515.1,2515.0,0.00596386]
[1724986440461,3.2078,2515.2,2515.0,0.00596386]
[1724986440664,0.39756,2515.2,2515.0,0.40354386]
[1724986440860,167.86757,2515.1,2515.0,0.00596386]
[1724986441157,167.86757,2515.1,2515.0,0.625154]
[1724986441359,167.86757,2515.1,2515.0,0.00596386]
[1724986442572,172.83751,2515.1,2515.0,0.00596386]
[1724986442862,177.12669674,2515.1,2515.0,0.00596386]
[1724986443774,176.13275674,2515.1,2515.0,0.00596386]
[1724986446070,171.84357,2515.1,2515.0,0.00596386]
[1724986446874,172.83751,2515.1,2515.0,0.00596386]
[1724986449974,171.84357,2515.1,2515.0,0.00596386]
[1724986450679,167.86757,2515.1,2515.0,0.00596386]
[1724986450975,167.86757,2515.1,2515.0,0.62515254]
[1724986453772,167.86757,2515.1,2515.0,0.00596386]
[1724986453976,167.86757,2515.1,2515.0,0.62514633]
[1724986454274,167.86757,2515.1,2515.0,0.62514604]
[1724986456378,167.86757,2515.1,2515.0,1.02273604]
[1724986456581,167.47,2515.1,2515.0,1.02273604]
[1724986457287,167.86757,2515.1,2515.0,0.62514604]
[1724986457485,167.86757,2515.1,2515.0,0.62513759]
[1724986458784,167.86757,2515.1,2515.0,1.02272759]
[1724986458985,167.47,2515.1,2515.0,1.02272759]
[1724986459186,167.47,2515.1,2515.0,5.8908651]
[1724986460086,164.77103799,2515.1,2515.0,17.3088251]
[1724986460283,162.71845978,2515.1,2515.0,18.96757925]
[1724986460487,162.71845978,2515.1,2515.0,20.33434199]
[1724986460689,162.71845978,2515.1,2515.0,20.95567837]
[1724986460984,162.71845978,2515.1,2515.0,18.82305896]
[1724986461285,162.71845978,2515.1,2515.0,20.95551101]
[1724986461587,162.71845978,2515.1,2515.0,20.33419896]
[1724986461784,162.10425978,2515.1,2515.0,20.85286062]
[1724986462091,162.10425978,2515.1,2515.0,20.85606644]
[1724986462390,161.11020244,2515.1,2515.0,22.76323384]
[1724986462575,161.11020244,2515.1,2515.0,20.6885872]
[1724986463384,161.11020244,2515.1,2515.0,22.76323384]
[1724986464482,160.21555343,2515.1,2515.0,21.25209384]
[1724986464683,160.21555343,2515.1,2515.0,22.76319005]
[1724986465184,160.21555343,2515.1,2515.0,14.68843406]
[1724986465379,160.21555343,2515.1,2515.0,16.7630807]
[1724986465581,160.21555343,2515.1,2515.0,9.438897]
[1724986466089,160.21555343,2515.1,2515.0,8.9188896]
[1724986466289,160.21555343,2515.1,2515.0,9.438897]
[1724986466989,160.21555343,2515.1,2515.0,7.92780079]
[1724986467190,160.21555343,2515.1,2515.0,9.43856005]
[1724986467386,160.21555343,2515.1,2515.0,8.91884651]
[1724986467888,160.21555343,2515.1,2515.0,9.43856005]
[1724986468083,160.21555343,2515.1,2515.0,18.86856005]
[1724986468483,160.21555343,2515.1,2515.0,12.86856005]
[1724986468688,160.21555343,2515.1,2515.0,18.86856005]
[1724986469381,160.21555343,2515.1,2515.0,20.26031376]
[1724986470390,160.21555343,2515.1,2515.0,20.26042002]
[1724986471691,160.21555343,2515.1,2515.0,21.25440002]
[1724986472684,160.21555343,2515.1,2515.0,20.26042002]
[1724986472889,160.21555343,2515.1,2515.0,18.348852]
[1724986473289,160.21555343,2515.1,2515.0,19.74062993]
[1724986473491,160.21555343,2515.1,2515.0,12.348852]
[1724986474384,160.21555343,2515.1,2515.0,19.86264631]
[1724986474591,160.21555343,2515.1,2515.0,21.25440286]
[1724986474785,160.21555343,2515.1,2515.0,19.7436436]
[1724986474992,160.21555343,2515.1,2515.0,21.2543574]
[1724986475489,160.21555343,2515.1,2515.0,19.69413083]
[1724986476793,160.21555343,2515.1,2515.0,21.2544308]
[1724986476994,160.21555343,2515.1,2515.0,15.2544308]
[1724986477195,160.21555343,2515.1,2515.0,14.2604508]
[1724986477503,160.21555343,2515.1,2515.0,15.2544308]
[1724986477983,160.21555343,2515.1,2515.0,13.743717]
[1724986478187,160.21555343,2515.1,2515.0,21.25443477]
[1724986478598,160.21555343,2515.1,2515.0,19.6941348]
[1724986479389,159.32092502,2515.1,2515.0,19.6941348]
[1724986479893,159.32092502,2515.1,2515.0,22.76276144]
[1724986480392,159.32092502,2515.1,2515.0,22.76263063]
[1724986481393,159.32092502,2515.1,2515.0,22.7621477]
[1724986482099,159.32092502,2515.1,2515.0,20.68750106]
[1724986482702,159.32092502,2515.1,2515.0,22.7621477]
[1724986483900,159.32092502,2515.1,2515.0,24.66349269]
[1724986484196,159.32092502,2515.1,2515.0,20.96806486]
[1724986484410,159.32092502,2515.1,2515.0,27.5373648]
[1724986484602,159.32092502,2515.1,2515.0,26.02712996]
[1724986484797,159.32092502,2515.1,2515.0,26.64580163]
[1724986484992,159.32092502,2515.1,2515.0,19.69345595]
[1724986485295,159.32092502,2515.1,2515.0,23.28261324]
[1724986486104,159.32092502,2515.1,2515.0,21.28261324]
[1724986488000,159.32092502,2515.1,2515.0,18.34248619]
[1724986488200,159.32092502,2515.1,2515.0,19.77248619]
[1724986489006,159.32092502,2515.1,2515.0,20.76646619]
[1724986489403,159.32092502,2515.1,2515.0,18.68747793]
[1724986489805,159.32092502,2515.1,2515.0,20.76614101]
[1724986490403,148.35092502,2515.1,2515.0,23.82438252]
[1724986490902,148.35092502,2515.1,2515.0,26.41769083]
[1724986491099,148.35092502,2515.1,2515.0,23.82438252]
[1724986491297,148.35092502,2515.1,2515.0,23.82429804]
[1724986491503,148.35092502,2515.1,2515.0,28.8832173]
[1724986491705,148.35092502,2515.1,2515.0,30.39337864]
[1724986492408,148.35092502,2515.1,2515.0,32.38134864]
[1724986492409,142.73620374,2515.1,2515.0,32.38134864]
[1724986492603,138.18564219,2515.1,2515.0,29.78804033]
[1724986492807,135.09396219,2515.1,2515.0,38.16386511]
[1724986493005,122.70514219,2515.1,2515.0,38.16386511]
[1724986493305,121.35794219,2515.1,2515.0,38.16386511]
[1724986493504,120.05535219,2515.1,2515.0,33.75191511]
[1724986493704,120.05535219,2515.1,2515.0,37.8831991]
[1724986494107,120.05535219,2515.1,2515.0,37.88305082]
[1724986494504,120.05535219,2515.1,2515.0,35.68280221]
[1724986494711,120.05535219,2515.1,2515.0,38.28160511]
[1724986495005,119.71135219,2515.1,2515.0,35.68280221]
[1724986495204,119.10255219,2515.1,2515.0,35.06413377]
[1724986495408,119.10255219,2515.1,2515.0,35.68253556]
[1724986495811,84.93845092,2515.1,2515.0,35.68253556]
[1724986496010,40.47912783,2515.1,2515.0,45.38279638]
[1724986496217,29.83768028,2515.1,2515.0,43.5693789]
[1724986496410,28.37784634,2515.1,2515.0,80.41003651]
[1724986496713,19.59999732,2515.1,2515.0,80.80793651]
[1724986496913,11.75333281,2515.1,2515.0,84.96423535]
[1724986497219,3.2078,2516.7,2516.4,0.39736]
[1724986497220,3.0178,2516.7,2516.4,0.39736]
[1724986497415,3.0178,2516.7,2516.5,0.61840179]
[1724986497416,1.388,2516.6,2516.5,0.61840179]
[1724986497812,5.364,2516.6,2516.5,0.61840179]
[1724986498415,5.364,2516.6,2516.5,2.04840179]
[1724986498816,5.364,2516.6,2516.5,1.43]
[1724986499117,5.364,2516.6,2516.5,0.61828997]
[1724986499622,5.364,2516.6,2516.5,2.04828997]
[1724986499823,5.364,2516.6,2516.5,0.61828997]
[1724986500909,5.364,2516.6,2516.5,41.41828997]
[1724986503921,5.364,2516.6,2516.5,0.61828997]
[1724986503922,5.76134,2516.6,2516.5,0.61828997]
[1724986505222,5.364,2516.6,2516.5,0.61828997]
[1724986507213,5.364,2516.6,2516.5,1.01563997]
[1724986508023,5.364,2516.6,2516.5,0.61828997]
[1724986510221,5.364,2516.6,2516.5,1.01563997]
[1724986510618,5.364,2516.6,2516.5,4.22343997]
[1724986510823,5.364,2516.6,2516.5,7.65343997]
[1724986511226,5.364,2516.6,2516.5,7.03515]
[1724986511530,5.364,2516.6,2516.5,48.45339237]
[1724986513921,5.364,2516.6,2516.5,41.41824237]
[1724986514126,5.364,2516.6,2516.5,41.81559237]
[1724986517129,5.364,2516.6,2516.5,41.41824237]
[1724986517828,5.364,2516.6,2516.5,41.41825743]
[1724986518928,5.76134,2516.6,2516.5,41.41825743]
[1724986519432,5.76134,2516.6,2516.5,40.8]
[1724986519624,5.76134,2516.6,2516.5,41.41828839]
[1724986519824,6.75469,2516.6,2516.5,0.61828839]
[1724986520024,0.39735,2516.5,2516.3,3.21376386]
[1724986520220,3.976,2516.4,2516.3,3.21376386]
[1724986520425,3.976,2516.4,2516.3,44.01376386]
[1724986520624,3.976,2516.4,2516.3,44.20865964]
[1724986520821,4.37337,2516.4,2516.3,44.20865964]
[1724986521427,3.976,2516.4,2516.3,44.20865964]
[1724986521636,4.37337,2516.4,2516.3,44.20865964]
[1724986521828,3.976,2516.4,2516.3,44.20865964]
[1724986522934,4.37337,2516.4,2516.3,44.20865964]
[1724986523732,4.37337,2516.4,2516.3,41.00085964]
[1724986524236,3.976,2516.4,2516.3,41.00085964]
[1724986524929,4.37337,2516.4,2516.3,40.80596386]
[1724986525136,3.976,2516.4,2516.3,40.99976585]
[1724986526030,3.976,2516.4,2516.3,41.39714585]
[1724986526438,3.976,2516.4,2516.3,41.85434585]
[1724986528534,0.4665,2516.6,2516.3,41.93266585]
[1724986528736,3.84635814,2516.6,2516.5,1.43]
[1724986529134,3.84635814,2516.6,2516.5,1.82735]
[1724986529331,3.37985814,2516.6,2516.5,1.82735]
[1724986529642,0.0039341,2516.8,2516.6,0.39733]
[1724986529839,0.0039341,2516.8,2516.7,1.9086]
[1724986530349,3.38379224,2516.8,2516.4,5.03516]
[1724986530641,3.37985814,2516.5,2516.4,5.03516]
[1724986532633,3.37985814,2516.5,2516.4,1.82736]
[1724986535547,3.37985814,2516.5,2516.4,2.86637446]
[1724986536144,3.37985814,2516.5,2516.4,1.43]
[1724986536353,3.37985814,2516.5,2516.4,1.82737]
[1724986536544,3.37985814,2516.5,2516.4,2.86638446]
[1724986536843,3.37985814,2516.5,2516.4,6.30321704]
[1724986537052,0.0039341,2516.8,2516.7,0.39732]
[1724986537346,0.0039341,2516.8,2516.7,5.37282889]
[1724986537552,0.0039341,2516.8,2516.7,16.95197018]
[1724986537754,0.0039341,2516.8,2516.7,15.32024125]
[1724986537949,0.0039341,2516.8,2516.7,16.71119799]
[1724986538342,0.0039341,2516.8,2516.7,18.78898098]
[1724986538646,0.0039341,2516.8,2516.7,16.71095323]
[1724986538950,0.0039341,2516.8,2516.7,23.28167322]
[1724986539138,0.0039341,2516.8,2516.7,10.71095323]
[1724986539340,0.0039341,2516.8,2516.7,3.37754865]
[1724986539341,3.38379224,2516.8,2516.7,3.37754865]
[1724986539650,2.12219224,2516.8,2516.7,6.76361986]
[1724986540653,2.12219224,2516.8,2516.7,6.36629986]
[1724986541756,2.12219224,2516.8,2516.7,4.80754865]
[1724986542143,0.4518,2517.0,2516.7,6.36807061]
[1724986542350,2.12219224,2516.8,2516.7,2.99052196]
[1724986542655,2.12219224,2516.8,2516.7,6.36822311]
[1724986543155,2.12219224,2516.8,2516.7,4.38136744]
[1724986543351,2.12219224,2516.8,2516.7,6.36815658]
[1724986544058,4.20074,2517.7,2516.9,0.39728]
[1724986544258,0.8801,2517.3,2517.2,1.43]
[1724986544658,3.00229224,2517.3,2517.2,1.43]
[1724986544853,3.00229224,2517.3,2517.2,3.86087971]
[1724986545252,3.00229224,2517.3,2517.2,1.43]
[1724986545457,3.00229224,2517.3,2517.2,4.25810846]
[1724986545648,3.00229224,2517.3,2517.2,6.24462109]
[1724986545853,3.00229224,2517.3,2517.2,47.04462109]
[1724986546160,2.55779224,2517.3,2517.2,46.00436187]
[1724986546360,2.55779224,2517.3,2517.2,47.04389385]
[1724986547756,2.55779224,2517.3,2517.2,45.05738122]
[1724986547958,2.12219224,2517.3,2517.2,50.2516789]
[1724986548253,2.12219224,2517.3,2517.2,50.77246514]
[1724986548653,2.12219224,2517.3,2517.2,47.78207631]
[1724986548853,2.12219224,2517.3,2517.2,45.05688728]
[1724986549056,2.12219224,2517.3,2517.2,44.65964728]
[1724986549263,2.12219224,2517.3,2517.2,43.62060924]
[1724986549563,2.12219224,2517.3,2517.2,40.8]
[1724986549865,2.12219224,2517.3,2516.7,4.5822184]
[1724986549866,5.4028,2517.3,2516.7,4.5822184]
[1724986550161,0.39727,2517.1,2516.7,5.49290577]
[1724986550354,0.8954,2517.0,2516.8,42.62729]
[1724986550553,0.8954,2517.0,2516.8,43.66634997]
[1724986550864,0.8954,2517.0,2516.8,43.26905997]
[1724986551063,0.8954,2517.0,2516.8,42.23]
[1724986551959,0.8954,2517.0,2516.8,40.8]
[1724986552552,0.8954,2517.0,2516.8,41.19729]
[1724986552958,0.8954,2517.0,2516.8,42.23634997]
[1724986553459,0.8954,2517.0,2516.8,41.19729]
[1724986554965,0.8954,2517.0,2516.8,42.23634997]
[1724986555154,3.6518,2517.2,2517.1,0.39726]
[1724986555358,0.444,2517.2,2517.1,0.39726]
[1724986555553,0.444,2517.2,2517.0,0.39726]
[1724986555763,0.444,2517.2,2517.1,40.8]
[1724986556167,4.4168,2517.2,2517.1,40.8]
[1724986556672,4.4168,2517.2,2517.1,41.19726]
[1724986557167,0.9024,2517.5,2517.1,44.23]
[1724986557372,0.4657,2517.4,2517.3,0.39721]
[1724986558767,0.4657,2517.4,2517.3,0.39723]
[1724986560359,0.4657,2517.4,2517.1,45.26905997]
[1724986560565,0.4657,2517.4,2517.1,44.62725]
[1724986564174,0.4657,2517.4,2517.1,40.8]
[1724986564369,0.86292,2517.4,2517.1,40.8]
[1724986565980,0.4657,2517.4,2517.1,40.8]
[1724986566969,0.4657,2517.4,2517.1,41.19726]
[1724986567175,3.6735,2517.4,2517.1,41.19726]
[1724986568381,3.6735,2517.4,2517.1,44.23]
[1724986568571,3.6735,2517.4,2517.2,0.8777]
[1724986568773,3.6735,2517.4,2517.3,0.39723]
[1724986568974,7.6463,2517.4,2517.3,0.39723]
[1724986569174,7.6463,2517.4,2517.1,44.62725]
[1724986569483,3.6735,2517.4,2517.1,41.19725]
[1724986570384,8.04352,2517.4,2517.1,40.8]
[1724986570577,0.99319,2517.0,2516.8,1.5583726]
[1724986570789,0.39731,2516.8,2516.5,2.43000132]
[1724986570969,3.9736,2516.8,2516.6,40.8]
[1724986571174,0.39733,2516.7,2516.3,1.63620582]
[1724986571379,0.39731,2516.8,2516.4,0.39737]
[1724986571684,4.6148,2516.9,2516.7,0.39731]
[1724986572268,4.6148,2516.9,2516.8,0.39731]
[1724986572473,4.6148,2516.9,2516.6,4.3519]
[1724986572687,4.6148,2516.9,2516.7,0.39732]
[1724986573379,4.6148,2516.9,2516.6,4.74923]
[1724986576090,4.6148,2516.9,2516.6,3.8922]
[1724986576381,4.6148,2516.9,2516.6,4.28953]
[1724986578271,1.407,2516.9,2516.6,5.32904375]
[1724986579073,1.407,2516.9,2516.7,0.39732]
[1724986579282,0.4715,2517.2,2516.9,0.39728]
[1724986579486,1.3836,2517.2,2517.0,0.39727]
[1724986580071,1.3836,2517.2,2516.9,0.39728]
[1724986580276,1.3836,2517.2,2516.8,5.77250375]
[1724986580482,1.3836,2517.2,2516.9,0.39729]
[1724986580988,1.3836,2517.2,2516.8,5.37521375]
[1724986581189,1.3836,2517.2,2516.9,0.39728]
[1724986582278,0.9121,2517.2,2516.9,0.39728]
[1724986582479,1.353,2517.2,2516.9,0.39728]
[1724986582689,1.353,2517.2,2516.9,1.43679375]
[1724986582892,1.75024,2517.2,2516.9,1.03951375]
[1724986583184,1.353,2517.2,2516.8,1.03951375]
[1724986583388,1.353,2517.2,2516.7,1.03951375]
[1724986583389,0.39729,2516.9,2516.7,1.03951375]
[1724986583682,0.9185,2516.8,2516.7,1.03951375]
[1724986583991,0.9185,2516.8,2516.7,2.43045028]
[1724986589190,1.31581,2516.8,2516.7,1.39093653]
[1724986589503,1.77371,2516.8,2516.7,1.39093653]
[1724986589694,0.39732,2516.7,2516.5,41.83951375]
[1724986589896,3.60512,2516.7,2516.5,41.83951375]
[1724986591893,0.39734,2516.6,2516.5,41.83951375]
[1724986592096,0.39734,2516.6,2516.5,40.8]
[1724986592489,0.39734,2516.6,2516.3,1.44285761]
[1724986592890,0.39734,2516.6,2516.4,40.8]
[1724986593388,4.37094,2516.6,2516.4,40.8]
[1724986596091,4.37094,2516.6,2516.4,41.19737]
[1724986597397,4.37094,2516.6,2516.4,40.8]
[1724986598097,3.9736,2516.6,2516.4,41.19736]
[1724986598299,4.37094,2516.6,2516.4,41.19736]
[1724986599094,4.37094,2516.6,2516.4,40.8]
[1724986599490,3.9736,2516.6,2516.4,41.19737]
[1724986600199,4.37094,2516.6,2516.4,40.8]
[1724986602186,3.9736,2516.5,2516.4,40.8]
[1724986602398,3.9736,2516.5,2516.3,0.00596386]
[1724986602588,13.4954,2516.4,2516.3,0.00596386]
[1724986603095,19.4954,2516.4,2516.3,0.00596386]
[1724986604199,0.39746,2515.9,2515.6,0.89349]
[1724986604401,1.4819,2515.8,2515.6,0.89349]
[1724986604701,1.4819,2515.8,2515.7,40.8]
[1724986604903,5.4571,2515.8,2515.7,40.8]
[1724986605198,5.85456,2515.8,2515.7,40.8]
[1724986605397,5.85456,2515.8,2515.5,0.40346386]
[1724986605398,11.4571,2515.8,2515.5,0.00596386]
[1724986605597,0.39749,2515.6,2515.5,0.00596386]
[1724986605995,4.37269,2515.6,2515.5,0.00596386]
[1724986607406,3.9752,2515.6,2515.5,0.00596386]
[1724986607707,4.37269,2515.6,2515.5,0.00596386]
[1724986608099,4.37269,2515.6,2515.5,40.80596386]
[1724986608299,3.9752,2515.6,2515.5,40.80596386]
[1724986608801,4.37269,2515.6,2515.5,40.80596386]
[1724986609008,7.58049,2515.6,2515.5,40.80596386]
[1724986610903,7.58049,2515.6,2515.5,0.00596386]
[1724986611205,8.57423,2515.6,2515.5,0.00596386]
[1724986611904,14.57423,2515.6,2515.5,0.00596386]
[1724986614509,17.6283746,2515.6,2514.4,3.2078]
[1724986614701,4.42394,2515.1,2514.7,0.39763]
[1724986615005,1.5043,2515.0,2514.7,0.39763]
[1724986615506,1.5043,2515.0,2514.6,0.98726386]
[1724986615507,0.39763,2514.8,2514.6,0.98726386]
[1724986615904,0.39761,2514.9,2514.7,0.39763]
[1724986617104,0.39761,2514.9,2514.6,1.38490386]
[1724986618112,0.39762,2514.8,2514.6,0.98726386]
[1724986618811,0.39761,2514.9,2514.6,0.98726386]
[1724986620116,1.5043,2515.0,2514.7,0.39763]
[1724986620318,1.9019,2515.0,2514.7,0.39763]
[1724986620516,0.39761,2514.9,2514.6,0.98726386]
[1724986621411,1.5043,2515.0,2514.6,0.98726386]
[1724986622119,0.39763,2514.8,2514.6,0.98726386]
[1724986623613,0.39762,2514.9,2514.6,0.98726386]
[1724986625311,4.42991386,2515.1,2514.6,0.98726386]
[1724986625312,0.00596386,2515.1,2514.6,0.98726386]
[1724986625512,0.00596386,2515.1,2514.8,3.2078]
[1724986625816,0.00596386,2515.1,2514.9,41.3196]
[1724986626018,0.00596386,2515.1,2515.0,0.4744]
[1724986626712,0.00596386,2515.1,2515.0,41.2744]
[1724986628020,0.00596386,2515.1,2515.0,41.7612]
[1724986631526,0.00596386,2515.1,2515.0,42.15879]
[1724986632722,0.00596386,2515.1,2515.0,41.7612]
[1724986634925,0.00596386,2515.1,2515.0,42.15879]
[1724986639229,0.00596386,2515.1,2515.0,41.7612]
[1724986640224,0.00596386,2515.1,2515.0,42.15879]
[1724986642121,0.00596386,2515.1,2515.0,46.13479]
[1724986642323,7.3818,2515.9,2515.8,0.39746]
[1724986642515,3.2078,2515.9,2515.8,0.39746]
[1724986642718,3.2078,2515.9,2515.7,0.19520468]